bitfinex-derivatives/quotes_ETHF0:USTF0_20250626
["timestamp","ask_amount","ask_price","bid_price","bid_amount"]
[1750974396743,3.2078,2408.0,2407.6,2.0451]
[1750974396939,4.0381,2408.0,2407.8,0.83034]
[1750974397345,4.0381,2408.0,2407.8,2.87544]
[1750974397554,0.83031,2407.9,2407.8,2.0451]
[1750974398943,0.83034,2407.8,2407.7,8.74]
[1750974399342,0.83033,2407.9,2407.6,0.8304]
[1750974399652,9.75805888,2407.7,2407.1,3.2078]
[1750974399847,0.83069,2406.8,2406.5,5.6722]
[1750974400149,3.2078,2407.2,2406.5,3.8149]
[1750974400348,7.0667,2407.6,2406.7,3.2078]
[1750974400556,7.0667,2407.6,2407.0,0.8306]
[1750974400848,7.0667,2407.6,2407.3,0.83049]
[1750974401045,3.2078,2408.0,2407.4,1.9543]
[1750974401239,9.75805888,2408.0,2407.4,3.8165]
[1750974401444,0.83045,2407.5,2406.9,60.4343]
[1750974401654,0.8305,2407.4,2407.0,4.6492]
[1750974401954,4.03832,2407.3,2407.0,1.9543]
[1750974402150,3.2078,2407.3,2407.0,1.9543]
[1750974402349,3.2078,2407.3,2407.0,2.78491]
[1750974402546,3.2078,2407.3,2407.1,1.8643]
[1750974402853,2.07647,2407.1,2406.2,8.741]
[1750974403056,3.2078,2406.7,2406.2,8.741]
[1750974403554,2.71454,2407.0,2406.5,0.83077]
[1750974403856,2.71454,2407.0,2406.6,12.5755]
[1750974404054,1.8839,2407.0,2406.7,8.741]
[1750974404256,2.71453,2407.0,2406.7,8.741]
[1750974404457,0.83068,2406.9,2406.7,8.741]
[1750974404657,5.0917,2407.0,2406.7,8.741]
[1750974404851,5.0917,2407.0,2406.6,1.9702]
[1750974404852,5.92233,2407.0,2406.6,2.80094]
[1750974405053,0.83066,2406.9,2406.7,8.742]
[1750974405453,5.0917,2407.0,2406.7,8.742]
[1750974405454,1.8839,2407.0,2406.7,8.742]
[1750974405651,3.2078,2407.3,2407.0,0.8306]
[1750974405854,3.2078,2407.3,2407.2,0.83055]
[1750974406051,3.9143,2407.6,2407.5,0.83045]
[1750974406352,3.08620222,2407.6,2407.2,3.8672]
[1750974406552,3.2078,2408.0,2407.3,1.897]
[1750974406761,1.13364864,2407.9,2407.4,2.0074]
[1750974407056,1.13354578,2407.8,2407.7,0.83038]
[1750974407257,1.13354578,2407.8,2407.6,0.83039]
[1750974407454,3.2078,2408.0,2407.7,1.897]
[1750974407653,1.13308803,2407.9,2407.7,3.8306]
[1750974407852,1.13308803,2407.8,2407.7,3.8306]
[1750974408159,1.13308803,2407.9,2407.7,3.8306]
[1750974408349,2.4112351,2407.8,2407.7,3.8306]
[1750974408552,3.54432313,2407.8,2407.7,3.8306]
[1750974409360,3.54432313,2407.8,2407.6,9.57341]
[1750974409657,2.4112351,2407.8,2407.7,3.8904]
[1750974410057,3.54553324,2407.8,2407.7,3.8904]
[1750974410458,4.36345443,2407.8,2407.7,2.0096]
[1750974410656,3.53311443,2407.8,2407.7,10.7516]
[1750974411262,1.13429814,2407.8,2407.7,11.58198]
[1750974411458,4.36342443,2407.9,2407.7,11.58198]
[1750974411654,1.13429814,2407.8,2407.7,11.58198]
[1750974412053,10.58835888,2408.0,2407.7,11.58198]
[1750974412054,1.13429814,2407.9,2407.7,11.58198]
[1750974412358,1.13429814,2407.8,2407.7,11.58198]
[1750974412550,1.13429814,2408.0,2407.7,10.7516]
[1750974412864,1.13429814,2407.9,2407.8,0.83034]
[1750974413062,1.13642703,2407.9,2407.7,10.7516]
[1750974413363,1.1361523,2407.8,2407.7,10.7516]
[1750974413559,1.1361523,2407.8,2407.7,11.58198]
[1750974416964,1.1361523,2407.8,2407.7,19.78978]
[1750974419865,9.77924517,2408.3,2408.1,0.83023]
[1750974419866,6.55025888,2408.3,2408.1,0.83023]
[1750974420167,1.13833954,2408.2,2408.1,9.57223]
[1750974421866,1.96854954,2408.2,2408.1,8.742]
[1750974422365,1.13833954,2408.2,2408.1,9.57224]
[1750974424864,2.0069,2408.6,2408.1,16.9498]
[1750974425064,5.60661629,2408.8,2408.7,0.83003]
[1750974425259,3.2078,2408.8,2408.7,9.57103]
[1750974425466,2.39881629,2408.9,2408.8,0.83]
[1750974425663,2.39881629,2408.9,2408.7,8.741]
[1750974425664,2.39881629,2409.0,2408.9,0.82996]
[1750974425867,5.1426,2409.1,2408.9,0.82996]
[1750974426071,5.1426,2409.1,2409.0,0.82993]
[1750974426263,5.1426,2409.1,2408.5,49.841]
[1750974426464,7.55104543,2409.1,2409.0,0.82993]
[1750974426664,1.9348,2409.1,2409.0,8.575]
[1750974426965,1.9348,2409.1,2409.0,9.40493]
[1750974431268,8.46515888,2409.4,2409.3,0.82983]
[1750974431473,1.9149,2409.4,2409.3,0.82983]
[1750974432476,2.0288,2409.5,2409.3,0.82983]
[1750974432673,2.85856,2409.5,2409.3,0.82983]
[1750974432873,4.73376,2409.5,2409.3,0.82983]
[1750974433179,4.73376,2409.5,2409.2,0.82984]
[1750974435474,4.73376,2409.5,2409.3,9.40182]
[1750974435678,0.82979,2409.4,2409.3,9.40182]
[1750974436676,4.73379,2409.5,2409.3,9.40182]
[1750974436978,4.73379,2409.5,2409.4,0.82979]
[1750974437181,5.86168583,2409.5,2409.4,0.82979]
[1750974437380,5.86168583,2409.5,2409.3,9.4018]
[1750974437581,4.73379,2409.5,2409.4,0.82979]
[1750974437876,4.73379,2409.5,2409.3,8.572]
[1750974437877,5.03250924,2409.5,2409.3,9.4018]
[1750974438081,4.73378,2409.5,2409.4,0.82979]
[1750974438282,5.86219341,2409.5,2409.4,0.82979]
[1750974438581,5.86219341,2409.5,2409.3,9.4018]
[1750974438782,4.73378,2409.5,2409.3,9.4018]
[1750974438980,3.2078,2409.7,2409.5,0.82976]
[1750974439181,1.1283149,2409.6,2409.5,0.82974]
[1750974439375,1.1283149,2409.6,2409.5,2.84424]
[1750974439577,1.8506,2409.9,2409.8,0.82965]
[1750974440175,1.8506,2409.9,2409.7,9.40166]
[1750974440372,2.68022,2409.9,2409.7,8.572]
[1750974440973,0.82965,2409.8,2409.7,8.572]
[1750974441976,0.82976,2409.5,2409.4,7.0345]
[1750974442179,6.55025888,2409.6,2409.0,8.571]
[1750974442480,0.83007,2408.6,2408.5,8.571]
[1750974442677,0.8302,2408.2,2408.1,8.571]
[1750974442879,8.62534888,2408.7,2407.9,3.7778]
[1750974442880,2.07535,2408.4,2407.9,3.7778]
[1750974443187,0.8302,2408.2,2408.1,8.571]
[1750974445397,0.83031,2407.9,2407.6,3.2078]
[1750974445684,0.8303,2408.0,2407.7,8.571]
[1750974446274,0.8303,2408.0,2407.6,54.9237]
[1750974446477,0.83032,2407.9,2407.7,8.572]
[1750974447174,0.83032,2407.9,2407.6,55.75411]
[1750974447690,0.83032,2407.9,2407.6,54.9237]
[1750974448185,0.83032,2407.9,2407.7,8.572]
[1750974448392,0.83032,2407.9,2407.6,54.9237]
[1750974448589,0.83032,2407.9,2407.7,37.084]
[1750974449491,0.83032,2407.9,2407.6,55.7541]
[1750974449684,0.83048,2407.4,2407.3,8.573]
[1750974450086,0.83052,2407.3,2407.2,3.2078]
[1750974450284,0.83052,2407.3,2407.2,11.7808]
[1750974452191,4.03831,2407.4,2406.8,8.573]
[1750974452404,3.2078,2407.4,2407.0,3.2078]
[1750974452604,3.2078,2407.4,2407.3,0.83052]
[1750974452890,3.2078,2407.4,2407.3,9.40452]
[1750974453287,0.8304,2407.7,2407.4,0.83047]
[1750974453489,0.83041,2407.7,2407.4,0.83047]
[1750974453999,0.83042,2407.6,2407.4,2.0092]
[1750974454797,0.83044,2407.6,2407.3,0.83051]
[1750974454998,0.83045,2407.5,2407.4,2.0092]
[1750974455400,0.83044,2407.6,2407.4,2.0092]
[1750974456306,0.83044,2407.6,2407.4,2.83968]
[1750974456596,1.9802,2407.8,2407.5,0.83042]
[1750974456597,2.81058,2407.8,2407.5,0.83042]
[1750974456797,2.81058,2407.8,2407.5,2.80792]
[1750974456989,3.2078,2408.2,2407.8,0.83034]
[1750974457188,0.83029,2408.0,2407.6,8.419]
[1750974457394,0.83029,2408.0,2407.8,0.83033]
[1750974458398,0.83025,2408.1,2407.9,0.83031]
[1750974458906,0.83025,2408.1,2407.8,0.83032]
[1750974459092,0.83029,2408.0,2407.7,2.80785]
[1750974459508,0.83029,2408.0,2407.8,0.83034]
[1750974460014,0.83029,2408.0,2407.7,2.80784]
[1750974460317,3.2078,2408.2,2407.8,0.83032]
[1750974460616,0.83026,2408.1,2407.9,0.8303]
[1750974460817,0.83026,2408.1,2408.0,8.419]
[1750974466217,0.83026,2408.1,2408.0,9.24927]
[1750974466416,0.83026,2408.1,2408.0,8.419]
[1750974468422,0.83026,2408.1,2408.0,9.24927]
[1750974468918,0.83026,2408.1,2408.0,8.419]
[1750974471823,1.96239837,2408.1,2408.0,8.419]
[1750974472024,1.13213837,2408.1,2408.0,9.24927]
[1750974472220,1.13398457,2408.1,2408.0,9.24927]
[1750974473622,1.96422457,2408.1,2408.0,9.24927]
[1750974474122,1.13398457,2408.1,2408.0,9.24927]
[1750974474725,1.13398457,2408.1,2408.0,41.54967]
[1750974474912,3.23849543,2408.7,2408.5,0.83007]
[1750974475112,3.23849543,2408.7,2408.6,8.419]
[1750974475320,4.37276813,2408.7,2408.6,8.419]
[1750974475626,4.37274813,2408.7,2408.6,8.419]
[1750974478920,1.9643027,2408.7,2408.6,8.419]
[1750974479428,1.9643027,2408.7,2408.6,9.24907]
[1750974479625,1.9643027,2408.7,2408.6,8.419]
[1750974479820,1.9643027,2408.7,2408.6,9.24907]
[1750974482330,1.1342727,2408.7,2408.6,9.24907]
[1750974483631,1.1342727,2408.7,2408.6,11.12657]
[1750974485130,2.70485,2409.0,2408.6,10.2965]
[1750974485328,1.13321937,2408.9,2408.8,4.03779]
[1750974485926,1.13321937,2408.9,2408.8,5.96919]
[1750974486231,1.9625,2409.4,2408.9,2.07488]
[1750974486433,1.13310387,2409.3,2409.2,0.82986]
[1750974486730,1.9625,2409.7,2409.6,0.82972]
[1750974486933,3.09530306,2409.7,2409.6,9.24672]
[1750974487536,1.13280306,2409.7,2409.6,9.24672]
[1750974488438,0.82963,2409.9,2409.6,9.24672]
[1750974488630,1.13135463,2409.8,2409.7,1.9638]
[1750974489228,1.13135463,2409.8,2409.7,10.2318]
[1750974489530,3.51545105,2410.3,2409.7,13.4396]
[1750974489725,0.30765105,2410.3,2410.0,3.2078]
[1750974489921,2.40844543,2410.9,2410.1,90.283]
[1750974490122,2.40844543,2411.0,2410.6,0.82937]
[1750974490332,2.40844543,2411.0,2410.7,8.268]
[1750974490531,2.40844543,2411.0,2410.7,9.09733]
[1750974490930,2.72383,2411.1,2410.7,9.09733]
[1750974492433,2.72383,2411.1,2410.7,8.268]
[1750974492633,2.72383,2411.1,2410.7,9.09734]
[1750974493639,0.82924,2411.0,2410.8,0.8293]
[1750974493936,2.72383,2411.1,2410.8,0.8293]
[1750974494137,0.82924,2411.0,2410.8,1.9302]
[1750974494338,2.72383,2411.1,2410.8,1.9302]
[1750974494534,2.72382,2411.1,2410.8,2.7595]
[1750974495542,1.8946,2411.1,2410.8,2.7595]
[1750974495740,2.72384,2411.1,2410.8,2.7595]
[1750974497043,2.72384,2411.1,2410.9,8.265]
[1750974497438,3.2078,2411.2,2411.1,0.82921]
[1750974498536,1.8798,2411.8,2411.5,0.82905]
[1750974498742,1.8798,2411.8,2411.6,8.264]
[1750974498939,0.829,2411.7,2411.6,8.264]
[1750974499449,0.82898,2411.8,2411.6,9.09302]
[1750974499747,4.03674,2411.9,2411.6,8.264]
[1750974499951,3.2078,2411.9,2411.6,8.264]
[1750974500246,4.03674,2411.9,2411.7,0.82898]
[1750974501035,3.2078,2411.9,2411.3,1.9159]
[1750974501237,3.2078,2411.6,2411.4,8.262]
[1750974501437,1.9251,2411.5,2411.4,8.262]
[1750974501644,2.81097,2411.5,2411.4,8.262]
[1750974502143,0.82909,2411.5,2411.4,8.262]
[1750974502347,4.03686,2411.6,2411.4,9.0911]
[1750974502645,0.82907,2411.5,2411.4,8.262]
[1750974504539,5.1329,2411.9,2411.4,8.262]
[1750974504742,0.82907,2411.5,2411.4,8.262]
[1750974504944,0.82905,2411.6,2411.4,8.261]
[1750974505145,0.82905,2411.6,2411.4,9.09009]
[1750974505444,0.82902,2411.7,2411.5,0.82907]
[1750974505640,0.82904,2411.6,2411.4,9.09008]
[1750974505844,0.82904,2411.6,2411.5,8.261]
[1750974508749,0.82907,2411.5,2411.4,0.8291]
[1750974508952,0.82907,2411.5,2411.4,9.0891]
[1750974510150,0.82906,2411.6,2411.4,9.0891]
[1750974510345,0.82906,2411.6,2411.5,8.26]
[1750974511652,0.82906,2411.6,2411.4,0.8291]
[1750974511954,0.82906,2411.6,2411.5,8.26]
[1750974512554,0.82906,2411.6,2411.4,0.8291]
[1750974512752,0.82906,2411.6,2411.5,8.259]
[1750974512954,0.82906,2411.6,2411.5,9.08807]
[1750974512955,0.82903,2411.6,2411.5,9.08807]
[1750974513157,0.82903,2411.6,2411.5,0.82907]
[1750974513456,0.82903,2411.6,2411.4,0.82908]
[1750974513658,0.82903,2411.6,2411.5,8.259]
[1750974513960,0.82907,2411.5,2411.4,0.82908]
[1750974514252,0.82906,2411.6,2411.4,37.06208]
[1750974514654,0.82903,2411.7,2411.5,9.08805]
[1750974515355,4.03675,2411.9,2411.8,0.82897]
[1750974515557,4.33116577,2411.9,2411.8,0.82897]
[1750974519362,6.7396112,2411.9,2411.8,28.77097]
[1750974519659,1.12336577,2411.9,2411.8,28.77097]
[1750974520059,1.12336577,2411.9,2411.8,30.69957]
[1750974521656,4.59012375,2411.9,2411.5,11.3228]
[1750974521861,0.82903,2411.6,2411.5,8.115]
[1750974522061,1.95239577,2411.6,2411.5,8.115]
[1750974522357,8.95379577,2411.6,2411.5,8.115]
[1750974522566,3.12476577,2411.6,2411.5,8.94407]
[1750974523064,1.12336577,2411.6,2411.5,8.94407]
[1750974523663,1.95239577,2411.6,2411.5,8.115]
[1750974523867,1.12336577,2411.6,2411.5,8.115]
[1750974524367,1.12336577,2411.6,2411.5,8.94407]
[1750974525761,1.12336577,2411.6,2411.5,8.115]
[1750974526672,1.12336577,2411.6,2411.5,8.94407]
[1750974530581,2.40844543,2411.8,2411.7,0.829]
[1750974530767,2.53e-06,2411.8,2411.7,4.0368]
[1750974531169,2.40844543,2412.4,2412.3,0.82879]
[1750974531374,2.40844543,2412.4,2412.3,8.53961851]
[1750974532171,5.19767543,2412.5,2412.3,8.53961851]
[1750974532364,0.82876,2412.4,2412.3,8.115]
[1750974532570,2.40844543,2412.4,2411.7,5.28028]
[1750974532770,6.44505543,2412.3,2412.0,0.82887]
[1750974533070,4.48060543,2412.1,2411.5,0.82904]
[1750974533270,0.82902,2411.7,2411.4,0.82908]
[1750974533470,1.9605,2411.6,2411.5,0.82907]
[1750974537877,2.78954,2411.6,2411.4,0.82909]
[1750974539578,2.78954,2411.6,2411.3,27.809]
[1750974539579,1.9605,2411.6,2411.5,0.82907]
[1750974539881,1.9605,2411.6,2411.5,8.94407]
[1750974540177,5.1166,2411.9,2411.6,0.82903]
[1750974540178,0.82897,2411.8,2411.6,0.82903]
[1750974540377,3.2078,2411.9,2411.5,8.115]
[1750974540578,3.2078,2411.9,2411.8,0.82897]
[1750974541877,3.2078,2411.9,2411.7,0.82898]
[1750974542379,6.03174,2411.9,2411.7,0.82898]
[1750974542776,1.12323671,2411.8,2411.7,0.82898]
[1750974546380,1.12323671,2411.8,2411.7,5.82898]
[1750974546779,1.12323671,2411.8,2411.7,2.71728]
[1750974547079,1.12323671,2411.8,2411.7,36.69098]
[1750974551475,1.12323671,2411.8,2411.7,41.69098]
[1750974551676,1.12323671,2411.8,2411.7,36.69098]
[1750974554582,1.12323671,2411.8,2411.7,8.94398]
[1750974554781,1.12323671,2411.8,2411.7,36.64198]
[1750974558380,3.2078,2412.0,2411.9,0.82893]
[1750974558581,4.32662139,2412.0,2411.9,28.50393]
[1750974560075,3.2078,2412.0,2411.9,28.50393]
[1750974560280,3.2078,2412.3,2412.2,0.8288]
[1750974560488,4.32643792,2412.3,2412.2,0.8288]
[1750974561976,1.11863792,2412.3,2412.2,0.8288]
[1750974562785,1.11863792,2412.3,2412.2,9.29523961]
[1750974562981,3.2078,2412.9,2412.3,2.07199]
[1750974563186,3.2078,2412.9,2412.8,0.82862]
[1750974563387,4.32600183,2412.9,2412.8,36.44962]
[1750974565391,1.11820183,2412.9,2412.8,36.44962]
[1750974565784,1.8292,2413.0,2412.9,0.82859]
[1750974566084,2.94610768,2413.0,2412.9,0.82859]
[1750974566483,1.11690768,2413.0,2412.9,0.82859]
[1750974566682,1.8425,2413.3,2413.2,0.82849]
[1750974566882,2.95881961,2413.3,2413.2,36.42349]
[1750974567187,7.28473961,2413.7,2413.4,0.82841]
[1750974567488,3.11146829,2413.6,2413.5,27.607]
[1750974567690,6.31926829,2413.6,2413.5,27.607]
[1750974568492,7.14761829,2413.6,2413.5,27.607]
[1750974568990,3.93981829,2413.6,2413.5,27.607]
[1750974569992,3.9377092,2413.6,2413.5,27.607]
[1750974570295,2.82425,2413.6,2413.5,27.607]
[1750974570490,1.9209,2414.1,2413.5,27.607]
[1750974570790,0.8283,2413.8,2413.6,11.9733]
[1750974570991,0.8283,2413.8,2413.6,12.80164]
[1750974571293,2.40844543,2414.5,2413.7,3.3068]
[1750974571491,2.40844543,2414.7,2414.6,0.828]
[1750974571697,2.40844543,2414.7,2414.5,49.741]
[1750974571896,5.61624543,2414.7,2414.5,49.741]
[1750974572194,3.07593486,2414.6,2414.5,57.722]
[1750974572392,4.6325,2414.6,2414.5,49.741]
[1750974572598,0.82812,2414.3,2413.8,49.728]
[1750974572797,3.2078,2414.1,2413.9,7.979]
[1750974573100,1.8351,2414.0,2413.8,49.728]
[1750974573290,2.0072,2414.2,2413.9,35.541]
[1750974573599,2.0072,2414.2,2413.9,36.36924]
[1750974573792,2.0072,2414.2,2413.9,0.82823]
[1750974573988,2.83534,2414.2,2413.8,50.55625]
[1750974574190,1.8351,2414.1,2413.8,50.55625]
[1750974574485,5.0429,2414.1,2413.8,0.82825]
[1750974574689,5.0429,2414.1,2413.9,35.534]
[1750974574889,5.87108,2414.1,2414.0,27.555]
[1750974575196,5.0429,2414.1,2413.8,0.82828]
[1750974575499,3.2078,2414.1,2413.9,7.978]
[1750974575797,6.67423961,2414.1,2413.7,7.978]
[1750974575994,0.82828,2413.8,2413.7,7.978]
[1750974576387,1.8813,2413.9,2413.8,0.82828]
[1750974576592,2.0072,2414.2,2414.1,0.82818]
[1750974576793,3.2078,2414.4,2414.1,7.978]
[1750974576995,3.2078,2414.4,2414.3,0.82811]
[1750974577496,3.2078,2414.7,2414.2,1.9287]
[1750974577694,4.03577,2414.7,2414.3,0.82809]
[1750974578096,4.03577,2414.7,2414.4,27.54]
[1750974578097,3.2078,2414.7,2414.4,27.54]
[1750974578398,4.03577,2414.7,2414.5,7.978]
[1750974578697,5.1163,2414.7,2414.5,8.80603]
[1750974579289,5.1163,2414.7,2414.6,0.828]
[1750974579690,3.2078,2415.6,2415.5,0.8277]
[1750974579997,4.29750796,2415.6,2415.5,8.6927]
[1750974580693,4.29750796,2415.6,2415.5,36.2127]
[1750974580896,1.08970796,2415.6,2415.5,0.8277]
[1750974581295,1.08970796,2415.6,2415.5,36.2077]
[1750974581600,1.08970796,2415.6,2415.5,0.8277]
[1750974581897,1.08970796,2415.6,2415.5,36.1997]
[1750974582292,1.08970796,2415.6,2415.5,36.1977]
[1750974582895,1.08970796,2415.6,2415.5,0.8277]
[1750974583296,1.08970796,2415.6,2415.5,36.1937]
[1750974583496,1.08970796,2415.6,2415.5,0.8277]
[1750974583798,1.08970796,2415.6,2415.5,36.1927]
[1750974584493,3.2078,2415.9,2415.8,0.82759]
[1750974584695,3.2078,2415.9,2415.5,35.365]
[1750974584696,0.8275,2416.1,2415.7,0.82761]
[1750974584897,1.9487,2416.0,2415.7,8.68961]
[1750974585095,1.9487,2416.0,2415.7,7.862]
[1750974585295,3.2078,2415.9,2415.7,7.862]
[1750974585503,0.82751,2416.1,2415.7,8.68963]
[1750974585696,2.06702,2418.2,2416.1,2.06872]
[1750974585903,2.39483786,2417.8,2417.2,3.2078]
[1750974586204,9.75163499,2417.3,2416.7,3.2078]
[1750974586400,0.82729,2416.7,2416.3,7.862]
[1750974586703,4.92130466,2416.6,2416.3,7.862]
[1750974587002,5.7818,2416.6,2416.1,3.2078]
[1750974587202,5.7818,2416.6,2415.9,35.347]
[1750974587203,1.07535674,2416.5,2416.4,4.03517]
[1750974587501,1.07534393,2416.5,2416.4,3.2078]
[1750974588001,1.07534393,2416.5,2416.4,4.03519]
[1750974588196,0.8272,2417.0,2416.6,0.82731]
[1750974588392,1.07620076,2416.9,2416.8,4.03505]
[1750974589608,1.07620076,2416.9,2416.8,3.2078]
[1750974589905,0.82726,2416.8,2416.5,7.86]
[1750974590103,1.8898,2416.7,2416.4,4.03519]
[1750974590304,1.8898,2416.7,2416.4,11.89419]
[1750974590505,0.82727,2416.8,2416.4,4.03519]
[1750974591005,3.8495,2417.1,2416.4,11.0668]
[1750974591006,4.52419,2416.7,2416.4,11.0668]
[1750974591198,0.82733,2416.6,2416.4,3.2078]
[1750974591399,1.8559,2416.5,2416.1,7.859]
[1750974591604,0.82741,2416.4,2416.1,7.859]
[1750974591900,2.68333,2416.3,2416.1,7.859]
[1750974592103,1.8833,2416.4,2416.1,8.68647]
[1750974593508,2.71071,2416.4,2416.1,7.859]
[1750974593706,1.8956,2416.3,2416.1,7.859]
[1750974593903,2.72303,2416.3,2416.0,3.2078]
[1750974594111,2.75857,2416.2,2416.0,3.2078]
[1750974594607,1.8956,2416.1,2416.0,3.2078]
[1750974594808,2.72309,2416.1,2416.0,3.2078]
[1750974595411,0.82749,2416.1,2416.0,3.2078]
[1750974595904,1.8833,2416.4,2416.0,3.2078]
[1750974596108,2.7107,2416.4,2416.1,0.82748]
[1750974596298,1.8833,2416.4,2416.1,3.8239]
[1750974596503,2.71071,2416.4,2416.1,1.9976]
[1750974596703,0.82743,2416.3,2416.0,3.2078]
[1750974596905,1.8833,2416.4,2416.0,3.2078]
[1750974597103,1.8833,2416.4,2416.3,4.03522]
[1750974597406,1.9051,2416.6,2416.5,0.82735]
[1750974597712,2.69627,2416.8,2416.5,0.82735]
[1750974597910,1.869,2416.8,2416.6,4.03511]
[1750974598412,1.869,2416.8,2416.6,3.2078]
[1750974598610,1.869,2416.8,2416.6,4.0351]
[1750974598911,1.869,2416.8,2416.7,0.82729]
[1750974599112,0.8272,2417.0,2416.6,3.2078]
[1750974599309,0.82721,2417.0,2416.7,0.82727]
[1750974599507,0.82727,2416.8,2416.6,4.03511]
[1750974599708,0.82723,2416.9,2416.6,4.03511]
[1750974599909,0.8272,2417.0,2416.7,0.82727]
[1750974600206,0.82722,2416.9,2416.7,0.82727]
[1750974600413,0.82726,2416.8,2416.6,4.0351]
[1750974600612,0.82729,2416.7,2416.6,3.2078]
[1750974601319,3.87944568,2418.0,2416.6,14.75163499]
[1750974601514,0.82704,2417.5,2417.3,3.2078]
[1750974601711,1.07858879,2417.4,2417.3,4.03488]
[1750974602016,1.90563879,2417.4,2417.3,3.2078]
[1750974602712,3.92373879,2417.4,2417.3,3.2078]
[1750974603513,0.82717,2417.1,2417.0,3.2078]
[1750974603712,0.82722,2416.9,2416.7,13.617975]
[1750974603915,1.9793,2417.0,2416.7,12.790715]
[1750974604215,1.859,2416.9,2416.7,12.790715]
[1750974604416,2.68624,2416.9,2416.7,13.617985]
[1750974604721,1.859,2416.9,2416.7,12.790715]
[1750974605017,0.82725,2416.8,2416.7,12.790715]
[1750974605215,1.859,2416.9,2416.7,12.790715]
[1750974605516,2.68622,2416.9,2416.7,21.473975]
[1750974605711,2.68622,2416.9,2416.7,13.617975]
[1750974605920,0.82725,2416.8,2416.7,12.790715]
[1750974606322,0.82742,2416.3,2416.2,3.2078]
[1750974606821,0.8274,2416.4,2416.2,3.2078]
[1750974607021,0.82738,2416.5,2416.3,0.82741]
[1750974607210,0.82738,2416.5,2416.2,4.03524]
[1750974607414,0.82733,2416.6,2416.4,0.82738]
[1750974607618,1.07996838,2416.5,2416.4,0.82738]
[1750974607921,1.07996838,2416.5,2416.3,0.8274]
[1750974608120,0.82734,2416.6,2416.4,0.82739]
[1750974608419,1.08033633,2416.5,2416.4,0.82739]
[1750974609514,1.90769633,2416.5,2416.3,2.6644]
[1750974609824,1.08033633,2416.4,2416.3,2.66442]
[1750974610218,0.82732,2416.6,2416.4,0.82738]
[1750974610518,1.08206653,2416.5,2416.4,12.790715]
[1750974610825,1.08206653,2416.5,2416.4,14.773315]
[1750974612127,1.90941653,2416.5,2416.4,14.773315]
[1750974612523,1.08206653,2416.5,2416.4,14.773315]
[1750974613226,1.08206653,2416.5,2416.4,15.600705]
[1750974613830,0.82734,2416.6,2416.4,15.600705]
[1750974614030,1.08528935,2416.5,2416.4,15.600705]
[1750974614229,1.08528935,2416.5,2416.4,12.790715]
[1750974614730,1.08528935,2416.5,2416.4,13.618105]
[1750974616730,1.08528935,2416.5,2416.4,21.438105]
[1750974617525,1.08528935,2416.5,2416.4,13.618105]
[1750974617829,1.08528935,2416.5,2416.4,21.438105]
[1750974618726,1.08528935,2416.5,2416.4,13.618105]
[1750974618930,1.08528935,2416.5,2416.4,21.438105]
[1750974621934,1.08528935,2416.5,2416.4,23.455505]
[1750974622942,1.08528935,2416.5,2416.4,13.618105]
[1750974624945,1.08528935,2416.5,2416.4,12.790715]
[1750974625146,2.94938935,2416.5,2416.4,12.790715]
[1750974625636,2.94938935,2416.5,2416.4,13.618105]
[1750974625833,2.94938935,2416.5,2416.4,12.790715]
[1750974626337,1.08528935,2416.5,2416.4,12.790715]
[1750974626537,1.91263935,2416.5,2416.4,12.790715]
[1750974626739,1.08528935,2416.5,2416.4,13.618105]
[1750974626939,1.08528935,2416.5,2416.4,12.790715]
[1750974627139,1.91263935,2416.5,2416.4,12.790715]
[1750974627444,1.08528935,2416.5,2416.4,12.790715]
[1750974627742,1.08528935,2416.5,2416.4,13.618105]
[1750974627935,2.80651,2417.0,2416.4,21.723315]
[1750974628136,1.8329,2417.2,2417.0,0.82716]
[1750974628137,2.40012106,2417.2,2417.0,0.82716]
[1750974628332,3.22715106,2417.5,2417.1,3.9326]
[1750974628537,1.09282456,2417.4,2417.3,4.03485]
[1750974629248,1.09282456,2417.4,2417.3,3.2078]
[1750974629646,3.49294562,2417.4,2417.3,3.2078]
[1750974629949,4.31999562,2417.4,2417.3,3.2078]
[1750974630244,3.49294562,2417.4,2417.3,13.617795]
[1750974630443,2.40012106,2417.4,2417.3,12.790715]
[1750974630743,3.49294562,2417.4,2417.3,12.790715]
[1750974630944,3.49294562,2417.4,2417.3,13.617795]
[1750974631148,3.49294562,2417.5,2417.4,0.82705]
[1750974631345,1.09251754,2417.5,2417.4,22.05878499]
[1750974631553,2.40012106,2418.1,2417.4,21.23173499]
[1750974631847,0.82691,2417.8,2417.7,3.2078]
[1750974632037,4.22152106,2418.2,2417.7,3.2078]
[1750974632244,0.82691,2417.8,2417.7,3.2078]
[1750974633148,5.82691,2417.8,2417.7,3.2078]
[1750974634345,0.82691,2417.8,2417.7,3.2078]
[1750974634645,5.82691,2417.8,2417.7,3.2078]
[1750974635145,5.82691,2417.8,2417.7,12.790715]
[1750974637750,0.82691,2417.8,2417.7,12.790715]
[1750974637950,5.82691,2417.8,2417.7,12.790715]
[1750974638950,0.82691,2417.8,2417.7,12.790715]
[1750974643556,1.91070429,2417.8,2417.7,12.790715]
[1750974658455,1.08379429,2417.8,2417.7,24.85538939]
[1750974658655,1.91070429,2417.8,2417.7,28.71898939]
[1750974658865,1.08379429,2417.8,2417.7,28.71898939]
[1750974659856,1.08379429,2417.8,2417.7,20.92998939]
[1750974660563,1.08379429,2417.8,2417.7,28.71898939]
[1750974661665,1.08379429,2417.8,2417.7,21.406655]
[1750974661878,1.08379429,2417.8,2417.7,26.406655]